Cogmind - Beta 13 @@@ ROGUE MODE // 2024.04.16 @ 01:41:37 Player: Mountinlodge Result: Destroyed by C-17 Slicer with Blade Saw Performance ------------- Evolutions (2) 1000 Regions Visited (3) 600 Robots Destroyed (67) 335 Value Destroyed (2054) 2054 Prototype IDs (0) 0 Alien Tech Used (0) 0 Bonus (44) 44 TOTAL SCORE: 4033 Bonus ------- High Alert Combat Kills 44 Cogmind --------- Core Integrity 0/550 Matter 298/300 Energy 100/100 System Corruption 0% Temperature Cool (0) Movement Walking (120) Location -8/Materials Parts ------- > --- POWER (1) -------- (None) > --- PROPULSION (3) --- Carbon-fiber Leg > --- UTILITY (5) ------ Machine Analyzer Improved Sensor Array Improved Signal Interpreter Hacking Suite Hacking Suite > --- WEAPON (2) ------- (None) > --- INVENTORY (5) ---- Improved Ion Engine Advanced Heat Sink Light Armor Plating Long-range Tractor Beam Improved Light Cannon Peak State ------------ > --- POWER ------------ Light Angular Momentum Engine > --- PROPULSION ------- Carbon-fiber Leg Titanium Leg VSS Leg > --- UTILITY ---------- Visual Processing Unit Kinecellerator Hardened Medium Armor Plating Hacking Suite Long-range Tractor Beam > --- WEAPON ----------- Heavy Assault Rifle Flak Cannon > --- INVENTORY -------- Deuterium Engine Cryofiber Web Improved Light Armor Plating Hardlight Generator Improved Shield Generator [Rating: 35] Favorites ----------- Power Nuclear Core Engine Ion Engine Power Core Nuclear Core Propulsion Wheel Treads Light Treads Leg Aluminum Leg Wheel Wheel Utility Hacking Suite Device Long-range Tractor Beam Storage Small Matter Pod Processor Visual Processing Unit Hackware Hacking Suite Protection Improved Light Armor Plating Weapon Heavy Assault Rifle Energy Gun Small Laser Ballistic Gun Heavy Assault Rifle Ballistic Cannon Improved Light Cannon Special Weapon Mining Laser Special Melee Weapon Datajack Build | -11 -10 -9 -8 ------- Run | Yrd Mat Mat Mat Slots Evolved 4 | . . 2 2 Power . | . . . . Propulsion 1 | . . 1 . Utility 3 | . . 1 2 Weapon . | . . . . Parts Attached 112 | 5 23 29 55 Power 15 | 1 2 6 6 Engine 12 | 1 2 6 3 Core 3 | . . . 3 Reactor . | . . . . Propulsion 31 | 2 4 8 17 Treads 5 | . . 1 4 Leg 13 | . . . 13 Wheel 13 | 2 4 7 . Hover . | . . . . Flight . | . . . . Utility 40 | . 7 10 23 Device 19 | . 3 5 11 Storage 4 | . 3 1 . Processor 3 | . . . 3 Hackware 2 | . 1 . 1 Protection 12 | . . 4 8 Artifact . | . . . . Weapon 26 | 2 10 5 9 Energy Gun 5 | 2 1 . 2 Energy Cannon . | . . . . Ballistic Gun 10 | . 3 5 2 Ballistic Cannon 6 | . 1 . 5 Launcher . | . . . . Special Weapon 1 | . 1 . . Impact Weapon . | . . . . Slashing Weapon . | . . . . Piercing Weapon . | . . . . Special Melee Weapon 4 | . 4 . . Unidentified Prototypes . | . . . . Parts Lost 29 | . 1 9 19 Power 6 | . . 3 3 Propulsion 9 | . 1 4 4 Utility 8 | . . 1 7 Weapon 6 | . . 1 5 Highest Loss Streak 12 | . 1 4 12 To Critical Strikes 1 | . . 1 . Average Slot Usage (%) 91 | . 90 92 92 Engine 4 | . 14 9 1 Core 4 | . . . 7 Treads 4 | . . 3 6 Leg 9 | . . . 14 Wheel 11 | . 28 24 2 Device 11 | . 4 9 13 Storage 2 | . 11 2 . Processor 5 | . . . 8 Hackware 10 | . 2 11 11 Protection 7 | . . 10 8 Energy Gun 2 | . 10 . . Ballistic Gun 10 | . 6 17 9 Ballistic Cannon 6 | . 4 1 7 Naked Turns . | . . . . Heaviest Build 29 | 6 20 20 29 Greatest Support 60 | 20 20 48 60 Greatest Overweight (x) 1 | . . . 1 Average Overweight (x) . | . . . . Largest Inventory Capacity 10 | 5 10 10 5 Average Capacity 5 | 5 6 6 5 Most Carried 10 | 5 7 10 5 Average Carried 4 | 2 5 5 4 Final Capacity 10 | 5 10 5 5 Final Carried 7 | 5 7 5 5 Class Distribution -------------------- 56% | Scavenger-Mutant 36% | Mutant 5% | Scavenger-Skirmisher Dominant Class ---------------- Scavenger-Mutant | -10/Materials Scavenger-Mutant | -9/Materials Scavenger-Mutant | -8/Materials Resources | -11 -10 -9 -8 ----------- Run | Yrd Mat Mat Mat Matter Collected 2243 | 250 380 489 1124 Remotely 1484 | . . 361 1123 Salvage Created 2316 | 50 252 944 1070 Parts 135 | 4 21 44 66 Haulers Intercepted . | . . . . Recyclers Shooed 3 | . . 2 1 Parts Field Recycled . | . . . . Retrieved Matter . | . . . . Parts Self-Destructed . | . . . . Prevented . | . . . . Kills | -11 -10 -9 -8 ------- Run | Yrd Mat Mat Mat Combat Hostiles Destroyed 47 | 1 6 15 25 Guns 23 | 1 6 10 6 Cannons 24 | . . 5 19 Classes Destroyed 13 | 1 5 3 4 Worker 3 | . 2 . 1 Builder 2 | . . . 2 Tunneler 1 | . 1 . . Recycler 5 | . . 5 . Mechanic 1 | . . . 1 Operator 1 | . 1 . . Watcher 7 | . 2 2 3 Swarmer 7 | . 3 4 . Grunt 25 | 1 3 6 15 Brawler 2 | . . 1 1 Duelist 1 | . . . 1 Sentry 11 | . . 4 7 Hunter 1 | . . . 1 Best Kill Streak 9 | 1 5 9 5 Combat Bots Only 5 | 1 3 5 4 Max Kills in Single Turn 2 | 1 1 2 2 Gunslinging . | . . . . Exploded . | . . . . Melee . | . . . . Uniques/NPCs Destroyed . | . . . . Combat | -11 -10 -9 -8 -------- Run | Yrd Mat Mat Mat Hostile Shots Fired 444 | 2 44 144 254 Missed 117 | 1 6 44 66 Damage Taken 4664 | 12 407 1301 2944 Core 953 | . 130 268 555 Absorbed by Shields 158 | . . . 158 Regen/Repaired (Parts) 15 | . . . 15 Core Remaining (%) 60 | 100 48 33 . Volleys Fired 215 | 2 37 67 109 Largest 2 | 2 2 2 2 Hottest 100 | 80 100 46 86 Shots Fired 365 | 4 58 111 192 Gun 243 | 4 52 98 89 Cannon 120 | . 4 13 103 Launcher . | . . . . Special 2 | . 2 . . Kinetic 321 | . 30 111 180 Thermal 37 | 2 23 . 12 Explosive . | . . . . Electromagnetic 7 | 2 5 . . Robot Hit Streak 10 | 4 6 8 10 Robot Miss Streak 8 | . 3 3 8 Penetration Max . | . . . . Secondary Targets 2 | . 1 1 . Max Gunslinging Chain 1 | . 1 1 . Shots Hit Robots 255 | 4 35 83 133 Core Hits 153 | 2 15 42 94 Critical Kills 1 | . . 1 . Critical Parts Destroyed . | . . . . Critical Strikes 6 | . 1 1 4 Destroy 1 | . . 1 . Blast 4 | . . . 4 Corrupt 1 | . 1 . . Melee Attacks 4 | . 2 2 . Impact . | . . . . Slashing . | . . . . Piercing . | . . . . Sneak Attacks 4 | . 2 2 . Combat Hostiles . | . . . . Follow-up Attacks . | . . . . Damage Inflicted 4209 | 53 480 1088 2588 Guns 2307 | 53 425 914 915 Cannons 1840 | . 55 174 1611 Explosions . | . . . . Melee . | . . . . Ramming 62 | . . . 62 Kinetic 3813 | . 305 1088 2420 Thermal 257 | 23 128 . 106 Explosive . | . . . . Electromagnetic 77 | 30 47 . . Impact . | . . . . Slashing . | . . . . Piercing . | . . . . Highest Corruption 3 | . . 3 . Average Corruption 3 | . . 3 . Corruption Purged . | . . . . Corruption Blocked . | . . . . Effects 3 | . . 3 . Message Errors 1 | . . 1 . Energy Discharges 1 | . . 1 . Parts Fused 1 | . . 1 . Overload Shots . | . . . . Overflow Damage 25 | . . 19 6 Projectiles 25 | . . 19 6 Explosions . | . . . . Melee . | . . . . Knockbacks 22 | . 1 1 20 Impact . | . . . . Kinetic 22 | . 1 1 20 Secondary . | . . . . Self-Inflicted Damage . | . . . . Shots . | . . . . Rammed . | . . . . Targets Rammed 5 | . . . 5 Kicked 5 | . . . 5 Crushed . | . . . . Highest Temperature 339 | 42 116 42 339 Average Temperature 62 | 22 52 13 78 Received Heat Transfer 1851 | 6 192 609 1044 Siege Activations . | . . . . Robots Corrupted . | . . . . Combat Hostiles . | . . . . Parts Fried . | . . . . Impact Corruptions . | . . . . Robots Melted . | . . . . Combat Hostiles . | . . . . Parts Melted . | . . . . Heat Transferred 572 | 50 300 . 222 Parts Sabotaged . | . . . . Parts Stolen . | . . . . Parts Stripped . | . . . . Power Chain Reactions . | . . . . Alert | -11 -10 -9 -8 ------- Run | Yrd Mat Mat Mat Peak Influence 458 | 20 240 305 458 Initial 102 | . 13 34 102 Average 193 | 14 139 175 231 Maximum Alert Level 2 | . 1 1 2 Low Security (%) 50 | 100 73 51 39 Level 1 40 | . 26 48 46 Level 2 8 | . . . 14 Level 3 . | . . . . Level 4 . | . . . . Level 5 . | . . . . High Security . | . . . . Max Security . | . . . . Squads Dispatched 8 | . 2 1 5 Investigation 1 | . 1 . . Extermination . | . . . . Reinforcement 4 | . 1 1 2 Assault . | . . . . Garrison 3 | . . . 3 Intercept . | . . . . Searches Triggered . | . . . . Construction Impeded . | . . . . Haulers Reinforced . | . . . . Active Scanning Responses . | . . . . Cargo Convoy Interrupts . | . . . . Stealth | -11 -10 -9 -8 --------- Run | Yrd Mat Mat Mat Distress Signals 6 | . 1 2 3 Communications Jammed . | . . . . Distress Signals . | . . . . Times Spotted 77 | 1 15 21 40 Peak Tracking Total 6 | 1 4 6 6 Tactical Retreats 4 | . 1 2 1 Traps | -11 -10 -9 -8 ------- Run | Yrd Mat Mat Mat Traps Triggered 4 | . 2 . 2 Indirectly . | . . . . Trap Hack Attempts 7 | . 7 . . Triggered . | . . . . Disarmed . | . . . . Reprogrammed 2 | . 2 . . Reused . | . . . . Traps Extracted . | . . . . Installed . | . . . . Triggered . | . . . . Machines | -11 -10 -9 -8 ---------- Run | Yrd Mat Mat Mat Machines Disabled 2 | . . . 2 Max in Single Turn 1 | . . . 1 Machines Repaired . | . . . . Machines Dismantled . | . . . . Machines Sabotaged . | . . . . Overloaded Fab Kills . | . . . . Hacking | -11 -10 -9 -8 --------- Run | Yrd Mat Mat Mat Machines Accessed 16 | . 4 4 8 Terminals 8 | . 3 2 3 Fabricators . | . . . . Repair Stations 1 | . . . 1 Recycling Units 4 | . 1 1 2 Scanalyzers 3 | . . 1 2 Garrison Access . | . . . . Total Hacks 67 | . 11 20 36 Successful 51 | . 6 17 28 Failed 16 | . 5 3 8 Catastrophic . | . . . . Database Lockouts . | . . . . Manual . | . . . . Terminals 29 | . 10 9 10 Fabricators . | . . . . Repair Stations 4 | . . . 4 Recycling Units 10 | . 1 3 6 Scanalyzers 24 | . . 8 16 Garrison Access . | . . . . Terminal Hacks 18 | . 5 7 6 Record 3 | . 1 2 . Robot Analysis 1 | . . . 1 Alert Level 5 | . 1 2 2 Unreport Threat 1 | . . . 1 Locate Traps 1 | . . 1 . Transport Status 2 | . 2 . . Investigation Status 1 | . 1 . . Reinforcement Status 1 | . . . 1 Zone Layout 3 | . . 2 1 Fabricator Hacks . | . . . . Repair Station Hacks 2 | . . . 2 Scan Component 1 | . . . 1 Repair 1 | . . . 1 Recycling Unit Hacks 9 | . 1 2 6 Process 2 | . . . 2 Report Inventory 4 | . 1 1 2 Retrieve Matter 2 | . . . 2 Retrieve Components 1 | . . 1 . Scanalyzer 22 | . . 8 14 Insert Component 11 | . . 4 7 Analyze 11 | . . 4 7 Garrison Access Hacks . | . . . . Unauthorized Hacks . | . . . . Terminals . | . . . . Fabricators . | . . . . Repair Stations . | . . . . Recycling Units . | . . . . Scanalyzers . | . . . . Garrison Access . | . . . . Data Cores Recovered 1 | . 1 . . Used . | . . . . Hacking Detections 12 | . 3 4 5 Full Trace Events 1 | . . . 1 Feedback Events . | . . . . Feedback Blocked . | . . . . Robot Schematics Acquired . | . . . . Robots Built . | . . . . Authchips . | . . . . Time . | . . . . Total Robot Build Rating . | . . . . Part Schematics Acquired 10 | . . 4 6 Parts Built . | . . . . Authchips . | . . . . Time . | . . . . Total Part Build Rating . | . . . . Parts Repaired 1 | . . . 1 Time 26 | . . . 26 Parts Recycled . | . . . . Recycled Matter 251 | . . . 251 Retrieved Matter 415 | . . . 415 Retrieved Components 10 | . . 10 . Parts Scanalyzed 11 | . . 4 7 Part Schematics Acquired 10 | . . 4 6 Parts Damaged 1 | . . . 1 Bothacking | -11 -10 -9 -8 ------------ Run | Yrd Mat Mat Mat Used RIF Installer . | . . . . Robots Hacked 2 | . 1 1 . Non-combat 2 | . 1 1 . Combat . | . . . . Robot Hacks Applied 3 | . 1 2 . parse_system 2 | . 1 1 . find_recycling 1 | . . 1 . Relay Couplers Released . | . . . . Fabnet Peak Effective % . | . . . . Robots Rewired . | . . . . Allies Hacked . | . . . . Hacks Repelled . | . . . . Allies | -11 -10 -9 -8 -------- Run | Yrd Mat Mat Mat Total Allies . | . . . . Largest Group . | . . . . Highest-Rated Group . | . . . . Highest-Rated Ally . | . . . . Total Orders . | . . . . Ally Attacks . | . . . . Total Damage . | . . . . Kills . | . . . . Allies Corrupted . | . . . . Allies Melted . | . . . . Intel | -11 -10 -9 -8 ------- Run | Yrd Mat Mat Mat Robot Analysis Total 1 | . . . 1 Derelict Logs Recovered . | . . . . Drone Launches . | . . . . Drone Recoveries . | . . . . Exploration | -11 -10 -9 -8 ------------- Run | Yrd Mat Mat Mat Turns Passed 3211 | 194 506 585 1926 Spaces Moved 2058 | 203 428 335 1092 Core 22 | 22 . . . Treads 192 | . . 71 121 Legs 759 | . . . 759 Wheels 1085 | 181 428 264 212 Hover . | . . . . Flight . | . . . . Fastest Speed 50 | 50 80 80 100 Average Speed 111 | 76 80 103 132 Slowest Speed 200 | 80 80 160 200 Overloaded Moves . | . . . . Propulsion Burnouts . | . . . . Robots Hopped . | . . . . Cave-ins Triggered . | . . . . Exploration Rate (%) 37 | 7 49 30 65 Regions Visited 3 Branch Regions . Pre-discovered Areas . | . . . . Known Exits Taken . | . . . . Unknown Exits Taken 3 | 1 1 1 . Scrap Searched . | . . . . Spaces Dug 2 | . 2 . . Terrain Destroyed 4 | . 2 . 2 Melee . | . . . . Projectile 4 | . 2 . 2 AOE . | . . . . Terrain Rammed . | . . . . Walls Destroyed . | . . . . Machines Disabled . | . . . . Actions | -11 -10 -9 -8 --------- Run | Yrd Mat Mat Mat Total 2607 | 236 528 466 1377 Wait 80 | 17 . . 63 Move 2055 | 202 427 334 1092 Hop . | . . . . Pick Up 75 | 10 20 18 27 Fast Attach 24 | . . 5 19 Attach 43 | 5 9 11 18 Detach . | . . . . Swap 45 | . 14 13 18 Drop 54 | . 12 16 26 Fire 215 | 2 37 67 109 Melee 4 | . 2 2 . Ram . | . . . . Kick 5 | . . . 5 Crush . | . . . . Escape Stasis . | . . . . Rewire . | . . . . Trap 7 | . 7 . . Miscellaneous . | . . . . Route ------- -11/Scrapyard -10/Materials (discovered 2 exits: *Mat x2) -9/Materials -8/Materials History --------- Turn | Location | Event 2 | -11/Scrapyard | Met Revision 17 50 | -11/Scrapyard | Discovered new exit (range 8) 195 | -11/Scrapyard | Entered Materials 300 | -10/Materials | Build established: Mutant 407 | -10/Materials | Discovered new exit (range 12) 485 | -10/Materials | Core integrity fell below 50% 556 | -10/Materials | Discovered new exit (range 3) 665 | -10/Materials | Build established: Scavenger-Mutant 701 | -10/Materials | Entered another Materials area 701 | -9/Materials | Evolved 2 slots: Propulsion x1, Utility x1 1069 | -9/Materials | Lost 4 parts (2p2n) 1106 | -9/Materials | Discovered new exit (range 16) 1196 | -9/Materials | Core integrity fell below 50% 1238 | -9/Materials | Lost 4 parts (1p1n1u1w) 1286 | -9/Materials | Entered another Materials area 1286 | -8/Materials | Evolved 2 slots: Utility x2 1816 | -8/Materials | Build established: Mutant 1867 | -8/Materials | Garrison activated, responded to threat 2319 | -8/Materials | Core integrity fell below 50% 2345 | -8/Materials | Lost 12 parts (1p3n5u3w) 2480 | -8/Materials | Repaired Lgt. Armor Plating 2692 | -8/Materials | Build established: Scavenger-Mutant 2834 | -8/Materials | Core integrity fell below 20% 2889 | -8/Materials | Lost 3 parts (1p1n1w) 3212 | -8/Materials | Destroyed by C-17 Slicer with Blade Saw Last Messages --------------- Katana (18) >>Retrieve(Matter) Matter ejected: 308 03118_ K-01 Serf cleans the Terminal. 03139_ ALERT: Suspicious intruders detected, dispatching Cutter reinforcements to area. 03167_ Kicked K-01 Serf. 03173_ W-25 Informer sends out distress signal. 03175_ C-17 Slicer knocked back. 03175_ Knocked back. 03187_ The unstable cave ceiling collapses. 03189_ Lgt. Treads severed. 03192_ Imp. Light Cannon severed. 03196_ Lgt. Nuclear Core severed. 03196_ Hvy. Assault Rifle destroyed. 03202_ R-06 Scavenger collects Imp. Light Cannon. 03204_ U-05 Engineer lays Concrete. 03207_ R-06 Scavenger collects Lgt. Treads. 03210_ Lgt. Treads severed. Map ----- +----------------------------------------------------+ | ### #???????????????????????????????? | | / #???????????????????????????????? | | ### #???????????????????????????????? | | #?# #???????????????????????????????? | | #?# +???????????????????????????????? | | #?# #???????????????????????????????? | | #?# #???????????????????????????????? | | #?# #???????????????????????????????? | | #?# #???????????????????????????????? | | #?###+######???????????????????????????????? | | #???# #?????????????????????????H??????????? | | #???# #?????????????????????????????#####??? | | #???# #?????????????????????????????#! #??? | | ##### ##????????????????????????????# #??? | | #???# ## # """ ## #??? | | [% #???# ###########""""" ### ##??? | | #???# #?????????#""""" #?# #???? | | ##### #???# #?????????#""""" #?# #???? | | ????# #???# #?????????# """ #?# #???? | | ????# #???# #?????????# #?# #???? | | ????# #???# #?????????# #?# #???? | | ????# ^%##### #?????????# #?# #???? | | ????#^ ^ #?????##############?# #???? | | ????# ####### ## ! #??# #???? | | ????# w !## #??# #???? | | ????# #### ##c@ ## #??# #???? | | ????# ####+### ### [[#### #???? | | ##### ## #=#?# [[# %#???? | | ## "" #c#?# ####???? | | ####### ## T" + #### # ####### | | #?????# ## "" # ^ ^ # # | | ###### ##?????# ## # """# | | ?????# #??????# ## / # ! !! " # """# | | ?????# #??????# ## # !! T # """# | | ?????# #??????# ## """ # a *! " # # | | ?????# #??????# ## """ + = # """# | | ????##+######## ## """ # = + """# | | ????# # ## # ###+##### # ! """# | | ????# ! ! [ # ##/ # # ## # # | | ????# # #####+## # ## # """# | | ????# """ + # ## # """# | | ????# """ """# # ## # """# | | ????# """ R"###+####### + ## # # | | ????# """# !#??# # ## ######## | | ????# # """ #??# #########+######?? | | ????########### """! #??# # ! #?? | | ??????????????# """!=#??# # #?? | | ??????????????# =######+## + """ #?? | | ??????????????# ## # # """"" #?? | | ??????????????######### = / # # """"" #?? | +----------------------------------------------------+ Best States ------------- Heat Dissipation 50 Energy Generation 18 Energy Capacity 275 Matter Stores 400 Matter Capacity 400 Sight Range 18 Robot Scan Range 15 Terrain Scan Range 14 Terrain Scan Density 10 Armor Coverage 375 Evasion (%) 55 Recoil Reduction 3 Kinecelleration 30 Offensive Hacking 20 Item Schematics ----------------- Ion Engine | -9/Materials | Scanalyzed Terrain Scanner | -9/Materials | Scanalyzed Tractor Beam | -9/Materials | Scanalyzed Mining Laser | -9/Materials | Scanalyzed Lgt. Deuterium Engine | -8/Materials | Scanalyzed Hardlight Generator | -8/Materials | Scanalyzed Mni. Grenade Launcher | -8/Materials | Scanalyzed Med. Storage Unit | -8/Materials | Scanalyzed Katana | -8/Materials | Scanalyzed Cryofiber Web | -8/Materials | Scanalyzed Robot Schematics ------------------ None Fabricated ------------ Nothing Alien Tech Used ----------------- None Achievements -------------- Hehehe Troublemaker Use The Force Challenges ------------ None Game ------ Seed SuperchargedThunderCharger Manual? 0 Play Time 01:47:35 Cumulative 8.3 hours Start 2024.04.15 @ 18:03:48 End 2024.04.16 @ 01:41:37 Sessions 4 Manual Loads 0 Difficulty Rogue Special Mode None Game No. 3 Rogue 3 Adventurer 0 Explorer 0 Win Type - Total 0 Types 0/0/0/0/0/0/0/0/0 Lore% 10 Gallery% 10 Achievement% 10 Wizard Run 0 Options --------- Layout 1 ASCII 0 Keyboard 0 Movement Arrows Keybinds 0 Fullscreen 1 Font 24/Smallcaps Map View 50x35 Zoom Use 0% Tactical HUD 1 Map Filters NONE Filters NONE Steam 1 RUN: 04c378dc-8cd0-4e0c-87e6-3697fc58b1a9